fUSD/lending_fUSD_20240906
["ID","MTS","AMOUNT","RATE_DAILY","PERIOD"]
[337297828,1725587457847,-388.92322018,0.00014586,2]
[337297829,1725587457856,-500.0,0.00014586,2]
[337297830,1725587457866,-500.0,0.00014586,2]
[337297831,1725587457875,-500.0,0.00014586,2]
[337297832,1725587457885,-211.52536487,0.00014586,2]
[337297833,1725587457894,-500.0,0.00014586,2]
[337297834,1725587457906,-500.0,0.00014586,2]
[337297835,1725587457915,-500.0,0.00014586,2]
[337297836,1725587457924,-624.95561799,0.00014586,2]
[337297837,1725587457933,-500.0,0.00014586,2]
[337297838,1725587457943,-500.0,0.00014586,2]
[337297839,1725587457952,-500.0,0.00014586,2]
[337297840,1725587457961,-500.0,0.00014586,2]
[337297841,1725587457970,-500.0,0.00014586,2]
[337297842,1725587457979,-500.0,0.00014587,2]
[337297843,1725587457989,-500.0,0.00014587,2]
[337297844,1725587457998,-500.0,0.00014587,2]
[337297845,1725587458007,-500.0,0.00014587,2]
[337297846,1725587458016,-500.0,0.00014587,2]
[337297847,1725587458025,-500.0,0.00014587,2]
[337297848,1725587458034,-500.0,0.00014587,2]
[337297849,1725587458042,-500.0,0.00014587,2]
[337297850,1725587458052,-500.0,0.00014587,2]
[337297851,1725587458060,-500.0,0.00014587,2]
[337297852,1725587458069,-613.98706909,0.00014587,2]
[337297853,1725587458078,-500.0,0.00014587,2]
[337297854,1725587458087,-500.0,0.00014587,2]
[337297855,1725587458096,-500.0,0.00014587,2]
[337297856,1725587458105,-500.0,0.00014587,2]
[337297857,1725587458115,-500.0,0.00014587,2]
[337297858,1725587458125,-500.0,0.00014587,2]
[337297859,1725587458134,-500.0,0.00014587,2]
[337297860,1725587458143,-500.0,0.00014587,2]
[337297861,1725587458152,-500.0,0.00014587,2]
[337297862,1725587458162,-500.0,0.00014587,2]
[337297863,1725587458171,-500.0,0.00014587,2]
[337297864,1725587458180,-500.0,0.00014587,2]
[337297865,1725587458189,-500.0,0.00014587,2]
[337297866,1725587458199,-500.0,0.00014587,2]
[337297867,1725587458208,-502.46170199,0.00014587,2]
[337297868,1725587458219,-500.0,0.00014587,2]
[337297869,1725587458228,-500.0,0.00014587,2]
[337297870,1725587458241,-531.69019731,0.00014587,2]
[337297871,1725587458250,-151.59253771,0.00014587,2]
[337297872,1725587458260,-500.0,0.00014587,2]
[337297873,1725587458270,-297.50191871,0.00014587,2]
[337297874,1725587458282,-500.0,0.00014587,2]
[337297875,1725587458292,-450.06057593,0.00014587,2]
[337297876,1725587458302,-500.0,0.00014587,2]
[337297877,1725587458311,-405.14310418,0.00014587,2]
[337297878,1725587458320,-500.0,0.00014587,2]
[337297879,1725587458330,-216.42477579,0.00014587,2]
[337297880,1725587458339,-500.0,0.00014587,2]
[337297881,1725587458349,-269.15321284,0.00014587,2]
[337297882,1725587458358,-500.0,0.00014587,2]
[337297883,1725587458367,-501.07026402,0.00014587,2]
[337297884,1725587458377,-252.04817812,0.00014587,2]
[337297885,1725587458388,-500.92757822,0.00014587,2]
[337297886,1725587458397,-501.23496011,0.00014587,2]
[337297887,1725587458406,-501.02555896,0.00014587,2]
[337297888,1725587458415,-500.0,0.00014587,2]
[337297889,1725587458425,-501.18115858,0.00014587,2]
[337297890,1725587458434,-500.0,0.00014587,2]
[337297891,1725587458443,-500.0,0.00014587,2]
[337297892,1725587458452,-500.91516537,0.00014587,2]
[337297893,1725587458461,-500.0,0.00014587,2]
[337297894,1725587458471,-501.19395155,0.00014587,2]
[337297895,1725587458480,-500.0,0.00014587,2]
[337297896,1725587458493,-508.39435409,0.00014587,2]
[337297897,1725587458502,-500.0,0.00014587,2]
[337297898,1725587458511,-203.86635711,0.00014587,2]
[337297899,1725587458520,-500.0,0.00014587,2]
[337297900,1725587458528,-500.70085248,0.00014587,2]
[337297901,1725587458538,-500.0,0.00014587,2]
[337297902,1725587458548,-501.10399007,0.00014587,2]
[337297903,1725587458558,-501.05556649,0.00014587,2]
[337297904,1725587458567,-500.0,0.00014587,2]
[337297905,1725587458577,-199.19340938,0.00014587,2]
[337297906,1725587458586,-501.0591062,0.00014587,2]
[337297907,1725587458596,-588.15953238,0.00014587,2]
[337297908,1725587458605,-500.65374838,0.00014587,2]
[337297909,1725587458615,-500.0,0.00014587,2]
[337297910,1725587458625,-478.71950761,0.00014587,2]
[337297911,1725587458636,-201.16783062,0.00014587,2]
[337297912,1725587458645,-15018.79104405,0.00014587,2]
[337297913,1725587458655,-500.75686619,0.00014587,2]
[337297914,1725587458665,-203.78535923,0.00014587,2]
[337297915,1725587458769,-500.0,0.00014587,2]
[337297916,1725587458787,-500.0,0.00014587,2]
[337297917,1725587458796,-501.19456329,0.00014587,2]
[337297918,1725587458805,-500.0,0.00014587,2]
[337297919,1725587458814,-501.04364318,0.00014587,2]
[337297920,1725587458823,-500.0,0.00014587,2]
[337297921,1725587458834,-521.98329271,0.00014587,2]
[337297922,1725587458844,-500.0,0.00014587,2]
[337297923,1725587458854,-249.6097117,0.00014587,2]
[337297924,1725587458863,-500.96351207,0.00014587,2]
[337297925,1725587458872,-500.0,0.00014587,2]
[337297926,1725587458882,-500.0,0.00014587,2]
[337297927,1725587458891,-501.18118532,0.00014587,2]
[337297928,1725587458900,-500.79611503,0.00014587,2]
[337297929,1725587458910,-500.0,0.00014587,2]
[337297930,1725587458919,-500.0,0.00014587,2]
[337297931,1725587458930,-523.14871446,0.00014587,2]
[337297932,1725587458940,-500.0,0.00014587,2]
[337297933,1725587458950,-190.12240208,0.00014587,2]
[337297934,1725587458962,-501.12692096,0.00014587,2]
[337297935,1725587458972,-500.0,0.00014587,2]
[337297936,1725587458983,-500.0,0.00014587,2]
[337297937,1725587458992,-500.0,0.00014587,2]
[337297938,1725587459001,-500.0,0.00014587,2]
[337297939,1725587459010,-501.16525965,0.00014587,2]
[337297940,1725587459019,-500.0,0.00014587,2]
[337297941,1725587459029,-501.16718217,0.00014587,2]
[337297942,1725587459038,-500.0,0.00014587,2]
[337297943,1725587459048,-500.0,0.00014587,2]
[337297944,1725587459059,-500.79238088,0.00014587,2]
[337297945,1725587459069,-500.0,0.00014587,2]
[337297946,1725587459079,-500.0,0.00014587,2]
[337297947,1725587459090,-452.46621332,0.00014587,2]
[337297948,1725587459099,-443.94895448,0.00014587,2]
[337297949,1725587459360,-30.24750902,0.00014587,2]
[337297950,1725587459369,-500.0,0.00014587,2]
[337297951,1725587459379,-500.0,0.00014587,2]
[337297952,1725587459388,-500.0,0.00014587,2]
[337297953,1725587459397,-500.0,0.00014587,2]
[337297954,1725587459407,-500.0,0.00014587,2]
[337297955,1725587459416,-500.0,0.00014587,2]
[337297956,1725587459425,-244.16041046,0.00014587,2]
[337297957,1725587459441,-255.83958954,0.00014587,2]
[337297958,1725587459450,-400.76697782,0.00014587,2]
[337297959,1725587459462,-99.23302218,0.00014587,2]
[337297960,1725587459471,-466.24697782,0.00014587,2]
[337297961,1725587459484,-33.75302218,0.00014587,2]
[337297962,1725587459494,-500.0,0.00014587,2]
[337297963,1725587459504,-500.0,0.00014587,2]
[337297964,1725587459513,-323.74731006,0.00014587,2]
[337297965,1725587459522,-328.31848752,0.00014587,2]
[337297966,1725587459532,-500.0,0.00014587,2]
[337297967,1725587459542,-500.0,0.00014587,2]
[337297968,1725587459555,-500.0,0.00014587,2]
[337297969,1725587459564,-500.0,0.00014587,2]
[337297970,1725587459574,-500.0,0.00014587,2]
[337297971,1725587459583,-500.0,0.00014587,2]
[337297972,1725587459592,-500.0,0.00014587,2]
[337297973,1725587459602,-500.0,0.00014587,2]
[337297974,1725587459611,-280.7729406,0.00014587,2]
[337297975,1725587459625,-219.2270594,0.00014587,2]
[337297976,1725587459634,-500.0,0.00014587,2]
[337297977,1725587459644,-61.47760297,0.00014587,2]
[337297978,1725587459655,-438.52239703,0.00014587,2]
[337297979,1725587459664,-159.53577217,0.00014587,2]
[337297980,1725587459676,-340.46422783,0.00014587,2]
[337297981,1725587459687,-72.42443948,0.00014587,2]
[337297982,1725587459699,-455.06680778,0.00014587,2]
[337297983,1725587459708,-500.0,0.00014587,2]
[337297984,1725587459717,-500.0,0.00014587,2]
[337297985,1725587459726,-500.0,0.00014587,2]
[337297986,1725587459738,-500.0,0.00014587,2]
[337297987,1725587459747,-500.0,0.00014587,2]
[337297988,1725587459756,-514.28320973,0.00014587,2]
[337297989,1725587459765,-347.38487646,0.00014587,2]
[337297990,1725587459774,-172.15191637,0.00014587,2]
[337297991,1725587459784,-500.0,0.00014587,2]
[337297992,1725587459794,-500.99542203,0.00014587,2]
[337297993,1725587459803,-448.36275791,0.00014587,2]
[337297994,1725587459814,-500.0,0.00014587,2]
[337297995,1725587459823,-500.0,0.00014587,2]
[337297996,1725587459833,-500.0,0.00014587,2]
[337297997,1725587459843,-502.12731132,0.00014587,2]
[337297998,1725587459852,-519.92249478,0.00014587,2]
[337297999,1725587459862,-500.0,0.00014587,2]
[337298000,1725587459872,-500.0,0.00014587,2]
[337298001,1725587459882,-500.0,0.00014587,2]
[337298002,1725587459892,-500.0,0.00014587,2]
[337298003,1725587459901,-500.0,0.00014587,2]
[337298004,1725587459911,-508.50970445,0.00014587,2]
[337298005,1725587459921,-163.51732062,0.00014587,2]
[337298006,1725587459931,-500.0,0.00014587,2]
[337298007,1725587459942,-500.0,0.00014587,2]
[337298008,1725587459953,-538.49329142,0.00014587,2]
[337298009,1725587459964,-502.59343675,0.00014587,2]
[337298010,1725587459973,-501.11610916,0.00014587,2]
[337298011,1725587459982,-500.0,0.00014587,2]
[337298012,1725587459993,-500.0,0.00014587,2]
[337298013,1725587460002,-309.64070978,0.00014587,2]
[337298014,1725587460012,-500.0,0.00014587,2]
[337298015,1725587460022,-500.0,0.00014587,2]
[337298016,1725587460031,-500.0,0.00014587,2]
[337298017,1725587460041,-500.0,0.00014587,2]
[337298018,1725587460051,-228.97870833,0.00014587,2]
[337298019,1725587460062,-500.0,0.00014587,2]
[337298020,1725587460072,-500.0,0.00014587,2]
[337298021,1725587460082,-500.0,0.00014587,2]
[337298022,1725587460092,-500.0,0.00014587,2]
[337298023,1725587460101,-601.44437384,0.00014587,2]
[337298024,1725587460224,-501.89248971,0.00014587,2]
[337298025,1725587460234,-620.76190389,0.00014587,2]
[337298026,1725587460249,-500.0,0.00014587,2]
[337298027,1725587460259,-500.0,0.00014587,2]
[337298028,1725587460269,-500.0,0.00014587,2]
[337298029,1725587460278,-500.0,0.00014587,2]
[337298030,1725587460288,-500.0,0.00014587,2]
[337298031,1725587460298,-500.0,0.00014587,2]
[337298032,1725587460308,-500.0,0.00014587,2]
[337298033,1725587460318,-500.0,0.00014587,2]
[337298034,1725587460328,-500.0,0.00014587,2]
[337298035,1725587460338,-500.0,0.00014587,2]
[337298036,1725587460348,-500.0,0.00014587,2]
[337298037,1725587460357,-500.0,0.00014587,2]
[337298038,1725587460367,-500.0,0.00014587,2]
[337298039,1725587460376,-500.0,0.00014587,2]
[337298040,1725587460387,-500.0,0.00014587,2]
[337298041,1725587460396,-953.5,0.00014587,2]
[337298042,1725587460405,-500.0,0.00014587,2]
[337298043,1725587460414,-500.0,0.00014587,2]
[337298044,1725587460424,-534.15669744,0.00014587,2]
[337298045,1725587460433,-500.0,0.00014587,2]
[337298046,1725587460442,-500.0,0.00014587,2]
[337298047,1725587460451,-592.62,0.00014587,2]
[337298048,1725587460460,-500.0,0.00014587,2]
[337298049,1725587460469,-500.0,0.00014587,2]
[337298050,1725587460479,-500.0,0.00014587,2]
[337298051,1725587460491,-500.0,0.00014587,2]
[337298052,1725587460501,-579.8,0.00014587,2]
[337298053,1725587460510,-500.0,0.00014587,2]
[337298054,1725587460520,-500.0,0.00014587,2]
[337298055,1725587460529,-500.0,0.00014587,2]
[337298056,1725587460540,-500.0,0.00014587,2]
[337298057,1725587460552,-500.0,0.00014587,2]
[337298058,1725587460562,-500.0,0.00014587,2]
[337298059,1725587460572,-500.0,0.00014587,2]
[337298060,1725587460582,-500.0,0.00014587,2]
[337298061,1725587460592,-500.0,0.00014587,2]
[337298062,1725587460602,-500.0,0.00014587,2]
[337298063,1725587460612,-500.0,0.00014587,2]
[337298064,1725587460621,-500.0,0.00014587,2]
[337298065,1725587460634,-500.0,0.00014587,2]
[337298066,1725587460645,-500.0,0.00014587,2]
[337298067,1725587460655,-500.0,0.00014587,2]
[337298068,1725587460664,-500.0,0.00014587,2]
[337298069,1725587460674,-500.0,0.00014587,2]
[337298070,1725587460684,-500.0,0.00014587,2]
[337298071,1725587460693,-500.0,0.00014587,2]
[337298072,1725587460704,-500.0,0.00014587,2]
[337298073,1725587460715,-500.0,0.00014587,2]
[337298074,1725587460725,-500.0,0.00014587,2]
[337298075,1725587460736,-500.0,0.00014587,2]
[337298076,1725587460752,-500.0,0.00014587,2]
[337298077,1725587460762,-500.0,0.00014587,2]
[337298078,1725587460771,-500.0,0.00014587,2]
[337298079,1725587460781,-500.0,0.00014587,2]
[337298080,1725587460790,-500.0,0.00014587,2]
[337298081,1725587460799,-500.0,0.00014587,2]
[337298082,1725587460809,-500.0,0.00014587,2]
[337298083,1725587460818,-600.68420122,0.00014587,2]
[337298084,1725587460828,-500.0,0.00014587,2]
[337298085,1725587460837,-500.0,0.00014587,2]
[337298086,1725587460848,-500.0,0.00014587,2]
[337298087,1725587460858,-500.0,0.00014587,2]
[337298088,1725587460868,-500.0,0.00014587,2]
[337298089,1725587460879,-500.0,0.00014587,2]
[337298090,1725587460889,-500.0,0.00014587,2]
[337298091,1725587460899,-500.0,0.00014587,2]
[337298092,1725587460909,-577.78699648,0.00014587,2]
[337298093,1725587460918,-247.44396685,0.00014587,2]
[337298094,1725587460928,-500.0,0.00014587,2]
[337298095,1725587460937,-500.0,0.00014587,2]
[337298096,1725587460947,-500.0,0.00014587,2]
[337298097,1725587460956,-500.0,0.00014587,2]
[337298098,1725587460966,-500.0,0.00014587,2]
[337298099,1725587460978,-458.362226,0.00014587,2]
[337298100,1725587461005,-500.0,0.00014587,2]
[337298101,1725587461021,-500.0,0.00014587,2]
[337298102,1725587461039,-382.5515282,0.00014587,2]
[337298103,1725587461057,-171.8382163,0.00014587,2]
[337298104,1725587461075,-501.34038983,0.00014587,2]
[337298105,1725587461092,-484.64113874,0.00014587,2]
[337298106,1725587461110,-500.0,0.00014587,2]
[337298107,1725587461124,-501.22463268,0.00014587,2]
[337298108,1725587461141,-500.0,0.00014587,2]
[337298109,1725587461159,-500.0,0.00014587,2]
[337298110,1725587461178,-500.0,0.00014587,2]
[337298111,1725587461191,-293.38812361,0.00014587,2]
[337298112,1725587461205,-500.0,0.00014587,2]
[337298113,1725587461223,-500.0,0.00014587,2]
[337298114,1725587461239,-500.0,0.00014587,2]
[337298115,1725587461255,-500.0,0.00014587,2]
[337298116,1725587461267,-500.0,0.00014587,2]
[337298117,1725587461282,-461.02991816,0.00014587,2]
[337298118,1725587461298,-500.0,0.00014587,2]
[337298119,1725587461313,-500.0,0.00014587,2]
[337298120,1725587461328,-500.0,0.00014587,2]
[337298121,1725587461342,-500.0,0.00014587,2]
[337298122,1725587461357,-500.0,0.00014587,2]
[337298123,1725587461372,-503.60441739,0.00014587,2]
[337298124,1725587461387,-500.0,0.00014587,2]
[337298125,1725587461402,-502.03022109,0.00014587,2]
[337298126,1725587461417,-502.49531619,0.00014587,2]
[337298127,1725587461430,-500.0,0.00014587,2]
[337298128,1725587461446,-500.0,0.00014587,2]
[337298129,1725587461460,-503.61735065,0.00014587,2]
[337298130,1725587461475,-500.0,0.00014587,2]
[337298131,1725587461491,-517.63828195,0.00014587,2]
[337298132,1725587461505,-500.0,0.00014587,2]
[337298133,1725587461519,-500.0,0.00014587,2]
[337298134,1725587461533,-503.7362489,0.00014587,2]
[337298135,1725587461551,-505.62866039,0.00014587,2]
[337298136,1725587461565,-500.0,0.00014587,2]
[337298137,1725587461580,-503.33840924,0.00014587,2]
[337298138,1725587461596,-500.0,0.00014587,2]
[337298139,1725587461611,-564.29,0.00014587,2]
[337298140,1725587461629,-500.0,0.00014587,2]
[337298141,1725587461644,-500.0,0.00014587,2]
[337298142,1725587461659,-500.0,0.00014587,2]
[337298143,1725587461674,-500.0,0.00014587,2]
[337298144,1725587461685,-500.0,0.00014587,2]
[337298145,1725587461695,-500.0,0.00014587,2]
[337298146,1725587461704,-500.0,0.00014587,2]
[337298147,1725587461714,-500.0,0.00014587,2]
[337298148,1725587461724,-500.0,0.00014587,2]
[337298149,1725587461733,-500.0,0.00014587,2]
[337298150,1725587461744,-500.0,0.00014587,2]
[337298151,1725587461754,-500.0,0.00014587,2]
[337298152,1725587461764,-500.0,0.00014587,2]
[337298153,1725587461773,-500.0,0.00014587,2]
[337298154,1725587461783,-549.72072935,0.00014587,2]
[337298155,1725587461792,-500.0,0.00014587,2]
[337298156,1725587461801,-500.0,0.00014587,2]
[337298157,1725587461810,-500.0,0.00014587,2]
[337298158,1725587461819,-500.0,0.00014587,2]
[337298159,1725587461829,-589.24666979,0.00014587,2]
[337298160,1725587461839,-500.0,0.00014587,2]
[337298161,1725587461850,-500.0,0.00014587,2]
[337298162,1725587461860,-500.0,0.00014587,2]
[337298163,1725587461870,-500.0,0.00014587,2]
[337298164,1725587461879,-500.0,0.00014587,2]
[337298165,1725587461890,-500.0,0.00014587,2]
[337298166,1725587461899,-500.0,0.00014587,2]
[337298167,1725587461908,-500.0,0.00014587,2]
[337298168,1725587461920,-500.0,0.00014587,2]
[337298169,1725587461930,-599.67,0.00014587,2]
[337298170,1725587461941,-500.0,0.00014587,2]
[337298171,1725587461950,-500.0,0.00014587,2]
[337298172,1725587461960,-500.0,0.00014587,2]
[337298173,1725587461973,-500.0,0.00014587,2]
[337298174,1725587461985,-500.0,0.00014587,2]
[337298175,1725587461995,-500.0,0.00014587,2]
[337298176,1725587462289,-500.0,0.00014587,2]
[337298177,1725587462310,-500.0,0.00014587,2]
[337298178,1725587462322,-500.0,0.00014587,2]
[337298179,1725587462332,-638.96505904,0.00014587,2]
[337298180,1725587462341,-572.06672078,0.00014587,2]
[337298181,1725587462351,-500.0,0.00014587,2]
[337298182,1725587462360,-500.0,0.00014587,2]
[337298183,1725587462370,-500.0,0.00014587,2]
[337298184,1725587462380,-500.0,0.00014587,2]
[337298185,1725587462390,-500.0,0.00014587,2]
[337298186,1725587462399,-500.0,0.00014587,2]
[337298187,1725587462409,-500.0,0.00014587,2]
[337298188,1725587462418,-500.0,0.00014587,2]
[337298189,1725587462428,-498.7909263,0.00014587,2]
[337298190,1725587462438,-500.0,0.00014587,2]
[337298191,1725587462447,-500.0,0.00014587,2]
[337298192,1725587462456,-500.0,0.00014587,2]
[337298193,1725587462467,-500.0,0.00014587,2]
[337298194,1725587462477,-500.0,0.00014587,2]
[337298195,1725587462487,-500.0,0.00014587,2]
[337298196,1725587462496,-500.0,0.00014587,2]
[337298197,1725587462506,-683.7,0.00014587,2]
[337298198,1725587462516,-500.0,0.00014587,2]
[337298199,1725587462526,-688.0,0.00014588,2]
[337298200,1725587462536,-500.0,0.00014588,2]
[337298201,1725587462546,-500.0,0.00014588,2]
[337298202,1725587462559,-283.30120137,0.00014588,2]
[337298203,1725587462568,-500.0,0.00014588,2]
[337298204,1725587462577,-500.0,0.00014588,2]
[337298205,1725587462587,-500.0,0.00014588,2]
[337298206,1725587462597,-500.0,0.00014588,2]
[337298207,1725587462607,-500.0,0.00014588,2]
[337298208,1725587462616,-500.0,0.00014588,2]
[337298209,1725587462626,-500.0,0.00014588,2]
[337298210,1725587462636,-500.0,0.00014588,2]
[337298211,1725587462645,-213.17431494,0.00014588,2]
[337298212,1725587462655,-500.0,0.00014588,2]
[337298213,1725587462665,-500.0,0.00014588,2]
[337298214,1725587462674,-500.0,0.00014588,2]
[337298215,1725587462684,-500.0,0.00014588,2]
[337298216,1725587462694,-503.2806584,0.00014588,2]
[337298217,1725587462705,-500.0,0.00014588,2]
[337298218,1725587462715,-500.0,0.00014588,2]
[337298219,1725587462724,-500.0,0.00014588,2]
[337298220,1725587462735,-504.01001368,0.00014588,2]
[337298221,1725587462744,-500.0,0.00014588,2]
[337298222,1725587462754,-505.44926463,0.00014588,2]
[337298223,1725587462764,-500.0,0.00014588,2]
[337298224,1725587462773,-500.0,0.00014588,2]
[337298225,1725587462783,-500.0,0.00014588,2]
[337298226,1725587462792,-500.0,0.00014588,2]
[337298227,1725587462801,-550.47806211,0.00014588,2]
[337298228,1725587462811,-500.0,0.00014588,2]
[337298229,1725587462821,-500.0,0.00014588,2]
[337298230,1725587462830,-500.0,0.00014588,2]
[337298231,1725587462839,-500.0,0.00014588,2]
[337298232,1725587462851,-500.0,0.00014588,2]
[337298233,1725587462861,-500.0,0.00014588,2]
[337298234,1725587462871,-500.0,0.00014588,2]
[337298235,1725587462880,-500.0,0.00014588,2]
[337298236,1725587462890,-31.8934967,0.00014588,2]
[337298237,1725587462907,-468.1065033,0.00014588,2]
[337298238,1725587462917,-190.96155234,0.00014588,2]
[337298239,1725587462927,-500.0,0.00014588,2]
[337298240,1725587462936,-8.09167697,0.00014588,2]
[337298241,1725587463328,-329.01293568,0.00014465,2]
[337298242,1725587463338,-500.0,0.00014563,2]
[337298243,1725587463348,-500.0,0.00014563,2]
[337298244,1725587463357,-500.0,0.00014563,2]
[337298245,1725587463367,-500.0,0.00014563,2]
[337298246,1725587463377,-411.41979544,0.00014563,2]
[337298247,1725587463442,-88.58020456,0.00014563,2]
[337298248,1725587463452,-281.03606797,0.00014564,2]
[337298249,1725587463463,-218.96393203,0.00014564,2]
[337298250,1725587463473,-500.0,0.00014565,2]
[337298251,1725587463484,-500.0,0.00014567,2]
[337298252,1725587463494,-500.86806871,0.00014568,2]
[337298253,1725587463504,-510.026715,0.00014568,2]
[337298254,1725587463514,-500.0,0.00014575,2]
[337298255,1725587463524,-500.0,0.00014576,2]
[337298256,1725587463534,-500.0,0.00014578,2]
[337298257,1725587463543,-500.0,0.00014587,2]
[337298258,1725587463557,-259.59538924,0.00014588,2]
[337298259,1725587463567,-500.0,0.00014588,2]
[337298260,1725587463577,-500.0,0.00014588,2]
[337298261,1725587463586,-500.0,0.00014588,2]
[337298262,1725587463598,-500.0,0.00014588,2]
[337298263,1725587463608,-387.83175541,0.00014588,2]
[337298264,1725587463618,-500.0,0.00014588,2]
[337298265,1725587463632,-500.0,0.00014588,2]
[337298266,1725587463642,-500.0,0.00014588,2]
[337298267,1725587463651,-500.0,0.00014588,2]
[337298268,1725587463661,-500.0,0.00014588,2]
[337298269,1725587463670,-500.0,0.00014588,2]
[337298270,1725587463679,-314.94772954,0.00014588,2]
[337298271,1725587463688,-500.0,0.00014588,2]
[337298272,1725587463698,-500.0,0.00014588,2]
[337298273,1725587463707,-294.78379154,0.00014588,2]
[337298274,1725587463717,-589.08098739,0.00014588,2]
[337298275,1725587463727,-500.0,0.00014588,2]
[337298276,1725587463737,-209.05458865,0.00014588,2]
[337298277,1725587463747,-500.0,0.00014588,2]
[337298278,1725587463758,-500.0,0.00014588,2]
[337298279,1725587463767,-500.0,0.00014588,2]
[337298280,1725587463777,-500.0,0.00014588,2]
[337298281,1725587463786,-500.0,0.00014588,2]
[337298282,1725587463796,-472.19826253,0.00014588,2]
[337298283,1725587463805,-500.0,0.00014588,2]
[337298284,1725587463816,-501.15645009,0.00014588,2]
[337298285,1725587463826,-500.0,0.00014588,2]
[337298286,1725587463835,-500.0,0.00014588,2]
[337298287,1725587463845,-500.0,0.00014588,2]
[337298288,1725587463855,-500.0,0.00014588,2]
[337298289,1725587463865,-500.0,0.00014588,2]
[337298290,1725587463875,-500.0,0.00014588,2]
[337298291,1725587463885,-500.0,0.00014588,2]
[337298292,1725587463895,-500.0,0.00014588,2]
[337298293,1725587463904,-500.0,0.00014588,2]
[337298294,1725587463913,-429.13204093,0.00014588,2]
[337298295,1725587463927,-72.10596324,0.00014588,2]
[337298296,1725587463937,-502.39781884,0.00014588,2]
[337298297,1725587463948,-500.0,0.00014588,2]
[337298298,1725587463958,-379.88710112,0.00014588,2]
[337298299,1725587463969,-500.0,0.00014588,2]
[337298300,1725587463979,-500.0,0.00014588,2]
[337298301,1725587463991,-500.0,0.00014588,2]
[337298302,1725587464001,-500.0,0.00014588,2]
[337298303,1725587464011,-500.0,0.00014588,2]
[337298304,1725587464021,-501.9219889,0.00014588,2]
[337298305,1725587464031,-335.48855789,0.00014588,2]
[337298306,1725587464044,-165.62977807,0.00014588,2]
[337298307,1725587464054,-500.0,0.00014588,2]
[337298308,1725587464064,-500.0,0.00014588,2]
[337298309,1725587464074,-500.83752491,0.00014588,2]
[337298310,1725587464084,-500.0,0.00014588,2]
[337298311,1725587464094,-501.31543057,0.00014588,2]
[337298312,1725587464104,-501.18558628,0.00014588,2]
[337298313,1725587464114,-501.1329372,0.00014588,2]
[337298314,1725587464123,-500.0,0.00014588,2]
[337298315,1725587464133,-415.07321226,0.00014588,2]
[337298316,1725587464142,-500.0,0.00014588,2]
[337298317,1725587464152,-318.87032687,0.00014588,2]
[337298318,1725587464162,-500.64347302,0.00014588,2]
[337298319,1725587464171,-501.62268889,0.00014588,2]
[337298320,1725587464181,-501.5158568,0.00014588,2]
[337298321,1725587464191,-501.38384106,0.00014588,2]
[337298322,1725587464201,-500.64561182,0.00014588,2]
[337298323,1725587464211,-503.75004883,0.00014588,2]
[337298324,1725587464221,-478.35686756,0.00014588,2]
[337298325,1725587464230,-500.0,0.00014588,2]
[337298326,1725587464241,-151.68352447,0.00014588,2]
[337298327,1725587464251,-501.19451615,0.00014588,2]